[Event "V Sunway Sitges Open 2018"]
[Site "Sitges"]
[Date "2018.12.19"]
[Round "6"]
[White "Varela La Madrid, Tilsia Carolina"]
[Black "Perez Bolanos, Joel"]
[Result "1-0"]
[ECO "B22"]
[WhiteElo "2049"]
[BlackElo "1717"]
[Annotator "NA"]
[PlyCount "59"]
[EventDate "2018.12.14"]
[EventType "swiss"]
[EventCountry "ESP"]
[SourceTitle "playchess.com"]
[Source "ChessBase"]
[SourceQuality "1"]
[TimeControl "40/5400+30:1800+30"]

1. e4 {[%emt 0:03:54]} c5 {[%emt 0:01:56]} 2. c3 {[%emt 0:00:11]} Nf6 {[%emt 0:00:48]} 3. e5 {[%emt 0:00:06]} Nd5 {[%emt 0:00:08]} 4. d4 {[%emt 0:00:05]} cxd4 {[%emt 0:02:46]} 5. Nf3 {[%emt 0:01:49]} e6 {[%emt 0:01:22]} 6. cxd4 {[%emt 0:00:08]} d6 {[%emt 0:00:22]} 7. Bc4 {[%emt 0:00:18]} Nb6 {[%emt 0:01:27]} 8. Bd3 {[%emt 0:00:12]} Be7 {[%emt 0:01:04]} 9. O-O {[%emt 0:00:21]} Nc6 {[%emt 0:03:21]} 10. Nc3 {[%emt 0:01:12]} Bd7 {[%emt 0:01:40]} 11. Bf4 {[%emt 0:02:50]} d5 {[%emt 0:01:03]} 12. Rc1 {[%emt 0:01:33]} a6 {[%emt 0:05:47]} 13. Qe2 {[%emt 0:08:08]} Qc7 {[%emt 0:06:24]} 14. Rfd1 {[%emt 0:03:13]} O-O-O {[%emt 0:02:06]} 15. a3 {[%emt 0:02:05]} Rdg8 {[%emt 0:01:38]} 16. b4 {[%emt 0:00:25]} g5 {[%emt 0:00:42]} 17. Be3 {[%emt 0:01:15]} g4 {[%emt 0:02:53]} 18. Ne1 {[%emt 0:00:17]} f6 {[%emt 0:04:13]} 19. b5 {[%emt 0:00:16]} axb5 {[%emt 0:01:53]} 20. Nxb5 {[%emt 0:00:20]} Qb8 {[%emt 0:00:17]} 21. exf6 {[%emt 0:02:34]} Bxf6 {[%emt 0:00:20]} 22. g3 {[%emt 0:00:06]} Bg5 {[%emt 0:06:45]} 23. Ng2 {[%emt 0:04:55]} Kd8 {[%emt 0:10:43]} 24. Bf4 {[%emt 0:01:33]} Bxf4 {[%emt 0:01:50]} 25. Nxf4 {[%emt 0:00:05]} e5 {[%emt 0:04:14]} 26. dxe5 {[%emt 0:01:11]} Nxe5 {[%emt 0:03:27]} 27. Qe3 {[%emt 0:10:10]} Nbc4 {[%emt 0:05:21]} 28. Bxc4 {[%emt 0:00:17]} dxc4 {[%emt 0:01:20]} 29. Ne6+ {[%emt 0:03:32]} Ke7 {[%emt 0:02:34]} 30. Nec7 {[%emt 0:00:11]} 1-0

[Event "V Sunway Sitges Open 2018"]
[Site "Sitges"]
[Date "2018.12.19"]
[Round "6"]
[White "Pedashenko, Anatoly"]
[Black "Walter Travella, German"]
[Result "0-1"]
[ECO "B32"]
[WhiteElo "1985"]
[BlackElo "1917"]
[Annotator "NA"]
[PlyCount "66"]
[EventDate "2018.12.14"]
[EventType "swiss"]
[EventCountry "ESP"]
[SourceTitle "playchess.com"]
[Source "ChessBase"]
[SourceQuality "1"]
[TimeControl "40/5400+30:1800+30"]

1. e4 {[%emt 0:00:00]} c5 {[%emt 0:08:17]} 2. Nf3 {[%emt 0:00:00]} Nc6 {[%emt 0:00:08]} 3. d4 {[%emt 0:00:00]} cxd4 {[%emt 0:00:09]} 4. Nxd4 {[%emt 0:00:00]} e5 {[%emt 0:00:14]} 5. Nb5 {[%emt 0:00:01]} a6 {[%emt 0:00:09]} 6. Nd6+ {[%emt 0:00:12]} Bxd6 {[%emt 0:00:20]} 7. Qxd6 {[%emt 0:00:04]} Qf6 {[%emt 0:00:24]} 8. Qd1 {[%emt 0:00:21]} Qg6 {[%emt 0:00:16]} 9. Nc3 {[%emt 0:00:28]} Nf6 {[%emt 0:00:13]} 10. f3 {[%emt 0:01:48]} d5 {[%emt 0:02:25]} 11. Nxd5 {[%emt 0:13:44]} Nxd5 {[%emt 0:00:24]} 12. Qxd5 {[%emt 0:04:16]} Be6 {[%emt 0:00:14]} 13. Qc5 {[%emt 0:05:27]} Nd4 {[%emt 0:01:31]} 14. Kf2 {[%emt 0:04:33]} Rc8 {[%emt 0:00:32]} 15. Qxe5 {[%emt 0:01:40]} Rxc2+ {[%emt 0:05:56]} 16. Ke3 {[%emt 0:03:44]} Nc6 {[%emt 0:02:59]} 17. Qd6 {[%emt 0:01:35]} Qg5+ {[%emt 0:10:19]} 18. f4 {[%emt 0:00:33]} Qa5 {[%emt 0:01:00]} 19. Bd2 {[%emt 0:10:54]} Qb6+ {[%emt 0:00:59]} 20. Kd3 {[%emt 0:00:13]} Bc4+ {[%emt 0:02:31]} 21. Kxc2 {[%emt 0:00:46]} Nd4+ {[%emt 0:00:12]} 22. Qxd4 {[%emt 0:00:52]} Qxd4 {[%emt 0:00:16]} 23. Re1 {[%emt 0:02:15]} Bxa2 {[%emt 0:02:59]} 24. Bd3 {[%emt 0:04:49]} Qa4+ {[%emt 0:07:28]} 25. Kc1 {[%emt 0:00:39]} O-O {[%emt 0:00:30]} 26. Bc3 {[%emt 0:00:24]} Rd8 {[%emt 0:02:33]} 27. Re3 {[%emt 0:05:21]} Bc4 {[%emt 0:02:43]} 28. Bb1 {[%emt 0:01:20]} Bb3 {[%emt 0:01:22]} 29. Rhe1 {[%emt 0:02:05]} b5 {[%emt 0:00:43]} 30. Rd3 {[%emt 0:02:20]} Rxd3 {[%emt 0:00:48]} 31. Bxd3 {[%emt 0:00:01]} b4 {[%emt 0:00:33]} 32. Be5 {[%emt 0:06:36]} f6 {[%emt 0:02:27]} 33. Bb8 {[%emt 0:00:18]} Qe8 {[%emt 0:04:25]} 0-1

[Event "V Sunway Sitges Open 2018"]
[Site "Sitges"]
[Date "2018.12.19"]
[Round "6"]
[White "Lopez Capape, Armando"]
[Black "Perez Bolanos, David"]
[Result "0-1"]
[ECO "A29"]
[WhiteElo "1827"]
[BlackElo "1747"]
[Annotator "NA"]
[PlyCount "68"]
[EventDate "2018.12.14"]
[EventType "swiss"]
[EventCountry "ESP"]
[SourceTitle "playchess.com"]
[Source "ChessBase"]
[SourceQuality "1"]
[TimeControl "40/5400+30:1800+30"]

1. c4 {[%emt 0:00:00]} e5 {[%emt 0:00:40]} 2. Nc3 {[%emt 0:00:00]} Nc6 {[%emt 0:00:46]} 3. Nf3 {[%emt 0:01:05]} Nf6 {[%emt 0:02:17]} 4. g3 {[%emt 0:01:31]} d6 {[%emt 0:02:37]} 5. Bg2 {[%emt 0:01:05]} g6 {[%emt 0:00:54]} 6. O-O {[%emt 0:01:15]} Bg7 {[%emt 0:00:51]} 7. d3 {[%emt 0:14:54]} O-O {[%emt 0:01:43]} 8. Rb1 {[%emt 0:01:49]} a5 {[%emt 0:04:32]} 9. a3 {[%emt 0:07:55]} Be6 {[%emt 0:03:41]} 10. Bg5 {[%emt 0:16:49]} Qd7 {[%emt 0:04:12]} 11. b4 {[%emt 0:09:27]} axb4 {[%emt 0:07:35]} 12. axb4 {[%emt 0:00:11]} Nh5 {[%emt 0:01:29]} 13. Bd2 {[%emt 0:11:07]} h6 {[%emt 0:05:48]} 14. b5 {[%emt 0:03:04]} Ne7 {[%emt 0:02:11]} 15. Ne1 {[%emt 0:01:18]} Rab8 {[%emt 0:07:16]} 16. e4 {[%emt 0:07:01]} Bh3 {[%emt 0:09:27]} 17. Nc2 {[%emt 0:00:56]} Bxg2 {[%emt 0:01:26]} 18. Kxg2 {[%emt 0:00:07]} f5 {[%emt 0:00:39]} 19. f3 {[%emt 0:04:28]} Rf7 {[%emt 0:03:26]} 20. Qe2 {[%emt 0:01:17]} Rbf8 {[%emt 0:01:25]} 21. Nd5 {[%emt 0:03:12]} Nxd5 {[%emt 0:03:06]} 22. cxd5 {[%emt 0:00:09]} Kh7 {[%emt 0:02:23]} 23. Bc3 {[%emt 0:04:31]} Bh8 {[%emt 0:09:30]} 24. d4 {[%emt 0:04:55]} fxe4 {[%emt 0:07:30]} 25. fxe4 {[%emt 0:00:52]} exd4 {[%emt 0:09:03]} 26. Bxd4 {[%emt 0:00:27]} Be5 {[%emt 0:00:30]} 27. Bxe5 {[%emt 0:00:21]} dxe5 {[%emt 0:00:06]} 28. Ne3 {[%emt 0:01:50]} Nf4+ {[%emt 0:02:47]} 29. gxf4 {[%emt 0:01:10]} exf4 {[%emt 0:00:06]} 30. Nf5 {[%emt 0:00:33]} gxf5 {[%emt 0:00:47]} 31. Rxf4 {[%emt 0:00:31]} Re8 {[%emt 0:01:09]} 32. Rbf1 {[%emt 0:00:33]} Qxd5 {[%emt 0:00:52]} 33. Rxf5 {[%emt 0:01:05]} Rxf5 {[%emt 0:00:08]} 34. Rxf5 {[%emt 0:00:14]} Qxf5 {[%emt 0:00:05]} 0-1

[Event "V Sunway Sitges Open 2018"]
[Site "Sitges"]
[Date "2018.12.19"]
[Round "6"]
[White "May Freixa, Josep"]
[Black "Bolat, Ikhsan"]
[Result "1-0"]
[ECO "A22"]
[WhiteElo "1749"]
[BlackElo "1502"]
[Annotator "NA"]
[PlyCount "73"]
[EventDate "2018.12.14"]
[EventType "swiss"]
[EventCountry "ESP"]
[SourceTitle "playchess.com"]
[Source "ChessBase"]
[SourceQuality "1"]
[TimeControl "40/5400+30:1800+30"]

1. c4 {[%emt 0:00:00]} e5 {[%emt 0:03:27]} 2. Nc3 {[%emt 0:00:00]} Nf6 {[%emt 0:00:12]} 3. g3 {[%emt 0:00:52]} d5 {[%emt 0:00:21]} 4. cxd5 {[%emt 0:00:12]} Nxd5 5. Bg2 {[%emt 0:00:06]} Nxc3 {[%emt 0:01:19]} 6. bxc3 {[%emt 0:00:04]} Bc5 {[%emt 0:00:21]} 7. d3 {[%emt 0:03:10]} O-O {[%emt 0:00:44]} 8. Nf3 {[%emt 0:00:04]} Nc6 {[%emt 0:00:38]} 9. O-O {[%emt 0:00:04]} Be6 {[%emt 0:01:03]} 10. Ng5 {[%emt 0:04:41]} h6 {[%emt 0:01:01]} 11. Nxe6 {[%emt 0:03:06]} fxe6 {[%emt 0:00:11]} 12. Qb3 {[%emt 0:00:07]} Qf6 {[%emt 0:00:44]} 13. e3 {[%emt 0:15:08]} Na5 {[%emt 0:00:46]} 14. Qb5 {[%emt 0:05:28]} Bb6 {[%emt 0:00:32]} 15. d4 {[%emt 0:01:01]} exd4 {[%emt 0:00:22]} 16. cxd4 {[%emt 0:01:25]} Rae8 {[%emt 0:00:44]} 17. Ba3 {[%emt 0:03:27]} Rf7 {[%emt 0:01:01]} 18. Bb4 {[%emt 0:02:58]} c6 {[%emt 0:01:29]} 19. Qa4 {[%emt 0:06:14]} Nc4 {[%emt 0:01:25]} 20. Bc3 {[%emt 0:00:03]} Nd6 {[%emt 0:00:33]} 21. Qc2 {[%emt 0:05:12]} Qe7 {[%emt 0:01:51]} 22. a4 {[%emt 0:01:55]} Bc7 {[%emt 0:02:27]} 23. Bb4 {[%emt 0:01:58]} Qg5 {[%emt 0:02:17]} 24. f4 {[%emt 0:07:50]} Qf5 {[%emt 0:01:19]} 25. e4 {[%emt 0:00:03]} Qg6 {[%emt 0:00:55]} 26. Rae1 {[%emt 0:01:44]} h5 {[%emt 0:02:54]} 27. f5 {[%emt 0:02:20]} Qh6 {[%emt 0:00:32]} 28. Bh3 {[%emt 0:07:26]} exf5 {[%emt 0:01:04]} 29. e5 {[%emt 0:01:17]} Nc8 {[%emt 0:00:44]} 30. Bxf5 {[%emt 0:01:03]} Kh8 {[%emt 0:00:45]} 31. Bg6 {[%emt 0:08:14]} Rxf1+ {[%emt 0:01:04]} 32. Kxf1 {[%emt 0:00:02]} Re6 {[%emt 0:01:00]} 33. Bf7 {[%emt 0:00:05]} Rf6+ {[%emt 0:01:24]} 34. exf6 {[%emt 0:01:19]} Qxf6+ {[%emt 0:01:03]} 35. Qf2 {[%emt 0:00:03]} Qxf2+ {[%emt 0:01:03]} 36. Kxf2 {[%emt 0:03:56]} Nd6 {[%emt 0:01:31]} 37. Bg6 {[%emt 0:01:21]} 1-0

[Event "V Sunway Sitges Open 2018"]
[Site "Sitges"]
[Date "2018.12.19"]
[Round "6"]
[White "Anirudh Daga"]
[Black "Knipfer, Andreas"]
[Result "0-1"]
[ECO "B43"]
[WhiteElo "1356"]
[BlackElo "1962"]
[Annotator "NA"]
[PlyCount "52"]
[EventDate "2018.12.14"]
[EventType "swiss"]
[EventCountry "ESP"]
[SourceTitle "playchess.com"]
[Source "ChessBase"]
[SourceQuality "1"]
[TimeControl "40/5400+30:1800+30"]

1. e4 {[%emt 0:00:00]} c5 {[%emt 0:03:25]} 2. Nf3 {[%emt 0:00:00]} e6 {[%emt 0:00:06]} 3. d4 {[%emt 0:00:32]} cxd4 {[%emt 0:00:06]} 4. Nxd4 {[%emt 0:00:21]} a6 {[%emt 0:00:24]} 5. Nc3 {[%emt 0:01:38]} Qc7 {[%emt 0:01:17]} 6. Bd3 {[%emt 0:01:24]} Nc6 {[%emt 0:00:53]} 7. Nxc6 {[%emt 0:01:48]} dxc6 {[%emt 0:01:14]} 8. Qe2 {[%emt 0:03:42]} e5 {[%emt 0:00:56]} 9. O-O {[%emt 0:00:57]} Nf6 {[%emt 0:01:55]} 10. Bg5 {[%emt 0:02:47]} Be7 {[%emt 0:01:22]} 11. Kh1 {[%emt 0:03:02]} h6 {[%emt 0:05:23]} 12. Bxf6 {[%emt 0:04:07]} Bxf6 {[%emt 0:00:56]} 13. a4 {[%emt 0:01:49]} Be6 {[%emt 0:02:12]} 14. a5 {[%emt 0:03:15]} O-O {[%emt 0:00:32]} 15. Rfd1 {[%emt 0:04:31]} Rad8 {[%emt 0:00:51]} 16. Kg1 Rd4 {[%emt 0:06:41]} 17. h3 {[%emt 0:15:34]} Rfd8 {[%emt 0:00:59]} 18. Qf3 {[%emt 0:16:14]} Be7 {[%emt 0:02:54]} 19. Ne2 {[%emt 0:03:32]} R4d7 {[%emt 0:00:28]} 20. c3 {[%emt 0:03:27]} Bb3 {[%emt 0:01:07]} 21. Ng3 {[%emt 0:06:30]} Bxd1 {[%emt 0:01:16]} 22. Rxd1 {[%emt 0:00:11]} Qxa5 {[%emt 0:01:58]} 23. Nf5 {[%emt 0:02:15]} Bf8 {[%emt 0:00:36]} 24. Kh2 {[%emt 0:01:54]} Qc7 {[%emt 0:03:39]} 25. h4 {[%emt 0:03:09]} g6 {[%emt 0:04:03]} 26. Qg3 {[%emt 0:00:28]} Kh7 {[%emt 0:01:51]} 0-1

[Event "V Sunway Sitges Open 2018"]
[Site "Sitges"]
[Date "2018.12.20"]
[Round "7"]
[White "Garriga Cazorla, Pere"]
[Black "Bharath, Subramaniyam H"]
[Result "1-0"]
[ECO "A05"]
[WhiteElo "2448"]
[BlackElo "2234"]
[Annotator "NA"]
[PlyCount "125"]
[EventDate "2018.12.14"]
[EventType "swiss"]
[EventCountry "ESP"]
[SourceTitle "playchess.com"]
[Source "ChessBase"]
[SourceQuality "1"]
[TimeControl "40/5400+30:1800+30"]

1. Nf3 {[%emt 0:00:00]} Nf6 {[%emt 0:00:00]} 2. c4 {[%emt 0:00:00]} b6 {[%emt 0:00:17]} 3. Nc3 {[%emt 0:00:00]} Bb7 {[%emt 0:00:08]} 4. d4 {[%emt 0:00:00]} g6 {[%emt 0:00:25]} 5. Qc2 {[%emt 0:00:00] A50: Queen's Fianchetto Defence (1 d4 Nf6 2 c4 b6)} (5. g3 Bg7 6. Bg2 O-O 7. O-O e6 8. Bf4 d6 9. Qc2 Nbd7 10. Rad1 Qe7 11. e4 e5 12. Bc1 Rfe8 13. Nd5 Nxd5 14. cxd5 Rac8 15. dxe5 dxe5 {½-½ (68) Wang,Y (2690)-Mamedyarov,S (2804) chess.com INT 2018}) 5... d5 {[%emt 0:00:35]} 6. Bg5 {[%emt 0:03:56]} dxc4 $146 {[%emt 0:12:47]} ({Predecessor:} 6... Bg7 7. cxd5 Nxd5 8. e4 Nxc3 9. bxc3 O-O 10. Rd1 Nd7 11. Be2 h6 12. Bh4 Qe8 {1-0 (48) Berkes,F (2677)-Czebe,A (2451) Gyula 2013}) 7. e4 {[%emt 0:05:07]} Bg7 {[%emt 0:04:43]} 8. Bxc4 {[%emt 0:01:26]} O-O {[%emt 0:00:34]} 9. Rd1 {[%emt 0:02:03]} c5 {[%emt 0:20:27]} 10. d5 {[%emt 0:03:06]} h6 {[%emt 0:03:55]} 11. Bf4 {[%emt 0:05:46]} Nbd7 {[%emt 0:02:19] [#]} 12. h3 $1 {[%emt 0:02:36]} a6 {[%emt 0:16:57]} 13. a4 {[%emt 0:01:16]} g5 {[%emt 0:00:57]} (13... Ne8 $16) 14. Bh2 {[%emt 0:05:50]} Nh5 {[%emt 0:10:12]} 15. e5 {[%emt 0:08:43]} b5 {[%emt 0:11:23]} 16. axb5 {[%emt 0:01:31]} axb5 {[%emt 0:00:35]} 17. Bxb5 {[%emt 0:00:35]} Nb6 {[%emt 0:00:01]} 18. O-O {[%emt 0:04:49]} Nxd5 {[%emt 0:01:37]} 19. Nxd5 {[%emt 0:00:28]} Bxd5 {[%emt 0:00:01]} 20. Bc4 {[%emt 0:00:08]} ({Don't take} 20. Qxc5 $6 e6 $16) 20... e6 {[%emt 0:00:19]} 21. Bxd5 {[%emt 0:00:06]} exd5 {[%emt 0:00:06]} 22. Qxc5 {[%emt 0:00:19]} Qa5 {[%emt 0:02:45]} (22... Rc8 $142 23. Qxd5 Qxd5 24. Rxd5 Rc4) 23. Qc2 {[%emt 0:06:50]} Rac8 {[%emt 0:01:11]} 24. Qf5 {[%emt 0:01:15]} Qb4 {[%emt 0:02:08]} 25. Rxd5 {[%emt 0:01:31]} Qxb2 {[%emt 0:00:25]} 26. Rd2 {[%emt 0:04:28]} Qb4 {[%emt 0:00:56]} 27. Rd4 {[%emt 0:00:27]} Rc4 {[%emt 0:00:23]} 28. Rxc4 $18 {[%emt 0:02:28]} Qxc4 {[%emt 0:00:02]} 29. Nxg5 {[%emt 0:00:37]} hxg5 {[%emt 0:00:23]} 30. Qxg5 {[%emt 0:00:04]} Qe2 {[%emt 0:00:18]} 31. g4 {[%emt 0:00:02]} f6 {[%emt 0:01:44]} 32. Qxh5 {[%emt 0:00:07]} fxe5 {[%emt 0:00:01]} 33. Bg3 {[%emt 0:01:04]} Rf3 {[%emt 0:02:57]} 34. Qg5 {[%emt 0:00:52]} Rd3 {[%emt 0:04:02]} 35. Rc1 {[%emt 0:01:00]} Rd1+ {[%emt 0:00:28]} 36. Rxd1 {[%emt 0:00:04]} Qxd1+ {[%emt 0:00:03]} 37. Kh2 {[%emt 0:00:26]} Qf3 {[%emt 0:00:01]} 38. Qe3 {[%emt 0:01:18]} Qf7 {[%emt 0:00:36]} 39. Qe4 {[%emt 0:00:16]} Qe6 {[%emt 0:00:29]} 40. h4 {[%emt 0:00:00]} Kf7 {[%emt 0:00:00]} 41. Kh3 {[%emt 0:02:05]} Qa6 {[%emt 0:01:48]} 42. Qf5+ {[%emt 0:00:12]} Kg8 {[%emt 0:00:13]} 43. h5 {[%emt 0:00:32]} Qc6 {[%emt 0:00:33]} 44. Kh2 e4 {[%emt 0:00:25]} 45. g5 {[%emt 0:01:25]} Qe8 {[%emt 0:00:46]} 46. h6 {[%emt 0:01:07]} Bf8 {[%emt 0:00:23]} 47. Kg2 {[%emt 0:02:36]} e3 {[%emt 0:00:12]} 48. Qd5+ {[%emt 0:00:08]} Kh7 {[%emt 0:00:13]} 49. Qd3+ {[%emt 0:00:18]} Qg6 {[%emt 0:00:30]} 50. Qxe3 {[%emt 0:00:53]} Qc6+ {[%emt 0:00:06]} 51. f3 {[%emt 0:01:04]} Qc2+ {[%emt 0:00:04]} 52. Kh3 {[%emt 0:00:25]} Qf5+ {[%emt 0:00:39]} 53. Kh4 {[%emt 0:00:33]} Qf7 {[%emt 0:00:58]} 54. Qe4+ {[%emt 0:00:06]} Kg8 {[%emt 0:00:02]} 55. h7+ {[%emt 0:00:59]} Kh8 {[%emt 0:00:54]} 56. Be5+ {[%emt 0:01:17]} Bg7 {[%emt 0:00:02]} 57. Bxg7+ {[%emt 0:00:40]} Kxg7 {[%emt 0:00:47]} 58. g6 {[%emt 0:01:48]} Qf6+ {[%emt 0:00:08]} 59. Kg4 {[%emt 0:00:06]} Qf8 {[%emt 0:00:41]} 60. f4 {[%emt 0:01:25]} Qd8 {[%emt 0:00:26]} 61. h8=Q+ {[%emt 0:02:47]} Kxh8 {[%emt 0:01:03]} 62. Qh1+ {[%emt 0:00:16]} Kg7 {[%emt 0:00:08]} 63. Qh7+ {[%emt 0:00:00]} 1-0

[Event "V Sunway Sitges Open 2018"]
[Site "Sitges"]
[Date "2018.12.20"]
[Round "7"]
[White "Pranav Anand"]
[Black "Wang, Kevin"]
[Result "0-1"]
[ECO "E10"]
[WhiteElo "2274"]
[BlackElo "2449"]
[Annotator "ChessBase"]
[PlyCount "76"]
[EventDate "2018.12.14"]
[EventType "swiss"]
[EventCountry "ESP"]
[SourceTitle "playchess.com"]
[Source "ChessBase"]
[SourceQuality "1"]
[TimeControl "40/5400+30:1800+30"]

1. d4 {[%emt 0:00:00]} Nf6 {[%emt 0:00:00]} 2. c4 {[%emt 0:00:00]} e6 {[%emt 0:00:11]} 3. Nf3 {[%emt 0:00:00]} d5 {[%emt 0:00:30]} 4. g3 {[%emt 0:00:00]} Bb4+ {[%emt 0:00:33]} 5. Bd2 {[%emt 0:00:00]} Bd6 {[%emt 0:00:32]} 6. Nc3 {[%emt 0:00:25]} O-O {[%emt 0:04:21]} 7. Bg5 {[%emt 0:00:20]} Be7 {[%emt 0:03:28]} 8. Bg2 {[%emt 0:04:35]} Nbd7 {[%emt 0:06:21]} 9. O-O {[%emt 0:01:17]} c6 {[%emt 0:06:08]} 10. Qc2 {[%emt 0:04:16]} dxc4 {[%emt 0:07:46]} 11. Nd2 {[%emt 0:12:29]} Nb6 {[%emt 0:06:24]} 12. e3 {[%emt 0:06:39]} e5 {[%emt 0:04:03]} 13. dxe5 {[%emt 0:17:31]} Ng4 {[%emt 0:03:01]} 14. Bxe7 {[%emt 0:02:30]} Qxe7 {[%emt 0:00:02]} 15. Na4 {[%emt 0:02:53]} Nxa4 {[%emt 0:05:17]} 16. Qxa4 {[%emt 0:00:02]} Nxe5 {[%emt 0:01:46]} 17. Qc2 {[%emt 0:09:23]} Be6 {[%emt 0:09:43]} 18. Qc3 {[%emt 0:07:42]} Rad8 {[%emt 0:04:55]} 19. Qxe5 {[%emt 0:01:23]} Rxd2 {[%emt 0:00:23]} 20. Rfd1 {[%emt 0:00:06]} Rxd1+ {[%emt 0:04:55]} 21. Rxd1 {[%emt 0:00:19]} Rd8 {[%emt 0:00:14]} 22. Rxd8+ {[%emt 0:03:34]} Qxd8 {[%emt 0:00:33]} 23. h4 {[%emt 0:00:05]} h6 {[%emt 0:01:12]} 24. Be4 {[%emt 0:05:08]} a5 {[%emt 0:03:00]} 25. a3 {[%emt 0:02:20]} Bd5 {[%emt 0:03:18]} 26. Bc2 {[%emt 0:01:28]} b5 {[%emt 0:01:33]} 27. h5 {[%emt 0:03:23]} b4 {[%emt 0:04:17]} 28. axb4 {[%emt 0:00:34]} axb4 {[%emt 0:00:16]} 29. Qf5 {[%emt 0:05:19]} b3 {[%emt 0:02:58]} 30. Bb1 {[%emt 0:05:32]} Kf8 {[%emt 0:01:43]} 31. Kh2 {[%emt 0:02:09]} Qe8 {[%emt 0:04:40]} 32. e4 {[%emt 0:03:02]} Be6 {[%emt 0:00:25]} 33. Qc5+ {[%emt 0:00:22]} Kg8 {[%emt 0:00:06]} 34. Qd6 {[%emt 0:01:30]} f6 {[%emt 0:01:11]} 35. Kg2 {[%emt 0:00:11]} Bg4 {[%emt 0:05:36]} 36. Qc5 {[%emt 0:00:42]} Bxh5 {[%emt 0:04:25]} 37. Qxc4+ {[%emt 0:00:05]} Bf7 {[%emt 0:00:02]} 38. f4 {[%emt 0:01:12]} Bxc4 {[%emt 0:00:03]} 0-1

[Event "V Sunway Sitges Open 2018"]
[Site "Sitges"]
[Date "2018.12.20"]
[Round "7"]
[White "Sanchez Lopez, Juan Manuel"]
[Black "Kholopov, Alexander A."]
[Result "0-1"]
[ECO "A13"]
[WhiteElo "2065"]
[BlackElo "2210"]
[Annotator "NA"]
[PlyCount "80"]
[EventDate "2018.12.14"]
[EventType "swiss"]
[EventCountry "ESP"]
[SourceTitle "playchess.com"]
[Source "ChessBase"]
[SourceQuality "1"]
[TimeControl "40/5400+30:1800+30"]

1. c4 {[%emt 0:25:45]} e6 {[%emt 0:00:00]} 2. e4 {[%emt 0:00:05]} c5 {[%emt 0:00:03]} 3. Nc3 {[%emt 0:00:05]} Nc6 {[%emt 0:00:02]} 4. g3 {[%emt 0:00:10]} Nf6 {[%emt 0:00:44]} 5. Bg2 {[%emt 0:00:05]} d5 {[%emt 0:00:06]} 6. cxd5 {[%emt 0:03:25] A19: English Opening: Flohr-Mikenas System with 3...c5} (6. exd5 exd5 7. cxd5 Nb4 8. d3 Nfxd5 9. Nxd5 Nxd5 10. Ne2 Be7 11. O-O O-O 12. d4 cxd4 13. Nxd4 Bf6 14. Re1 a6 15. Be4 h6 16. Nf5 Bxf5 17. Bxf5 Ne7 18. Be4 Nc6 {½-½ (32) Lovkov,R (2414)-Safarli,E (2607) St Petersburg 2010}) 6... exd5 {[%emt 0:00:05]} 7. Nge2 {[%emt 0:01:00]} d4 {[%emt 0:12:08]} 8. Nd5 $146 {[%emt 0:01:19]} ({Predecessor:} 8. Nb1 Nb4 9. Nf4 g5 10. Nh3 Bxh3 11. Bxh3 Nd3+ 12. Ke2 Nxe4 13. Rf1 Nxc1+ 14. Qxc1 d3+ 15. Kf3 Qd5 16. Re1 f5 17. g4 Kf7 18. b3 Nc3+ 19. Ke3 f4# {0-1 (19) Beck Erlach,M-Piroli,M Germany 1995}) 8... Nxd5 {[%emt 0:00:11]} 9. exd5 {[%emt 0:00:13]} Nb4 {[%emt 0:00:03]} 10. O-O {[%emt 0:00:22]} Nxd5 {[%emt 0:09:52]} 11. Qb3 {[%emt 0:08:05]} Nb6 {[%emt 0:00:09]} 12. Nf4 {[%emt 0:03:58]} Be7 {[%emt 0:01:48]} 13. a4 {[%emt 0:01:36]} Rb8 {[%emt 0:32:19]} 14. a5 {[%emt 0:02:41]} Nd7 {[%emt 0:09:04]} 15. Nd5 {[%emt 0:14:57]} O-O {[%emt 0:00:56]} 16. Nxe7+ {[%emt 0:01:32]} Qxe7 {[%emt 0:00:03]} 17. d3 {[%emt 0:00:22]} Ne5 {[%emt 0:11:22]} 18. Bf4 {[%emt 0:01:46]} g5 {[%emt 0:00:50]} 19. Bxg5 $11 {[%emt 0:02:17]} (19. Bxe5 $5 Qxe5 20. Rae1 $11) 19... Qxg5 {[%emt 0:00:03]} 20. f4 {[%emt 0:00:08]} Be6 {[%emt 0:04:48]} 21. Qc2 {[%emt 0:00:48]} Qh5 {[%emt 0:00:30]} 22. fxe5 {[%emt 0:00:11]} Qxe5 {[%emt 0:00:03]} 23. Rae1 {[%emt 0:00:09]} Qg5 {[%emt 0:00:05]} 24. Rf4 {[%emt 0:03:13]} b6 {[%emt 0:00:42]} 25. Rfe4 {[%emt 0:01:51]} Qg6 {[%emt 0:07:13]} 26. Re5 {[%emt 0:03:52]} Rbe8 {[%emt 0:02:58]} 27. Qd2 {[%emt 0:03:41]} h6 {[%emt 0:02:29]} 28. Qf4 {[%emt 0:10:12]} Kg7 {[%emt 0:01:21]} 29. Qh4 {[%emt 0:02:34]} Bd7 {[%emt 0:00:30]} 30. Rxe8 {[%emt 0:01:51]} Rxe8 {[%emt 0:00:05]} 31. Rxe8 {[%emt 0:00:16]} Bxe8 {[%emt 0:00:03]} 32. Be4 {[%emt 0:00:22]} Qg5 {[%emt 0:00:08]} 33. Qh3 {[%emt 0:00:30]} Qc1+ {[%emt 0:00:40]} 34. Kg2 {[%emt 0:00:46]} Qxb2+ {[%emt 0:00:10]} 35. Kf3 {[%emt 0:00:38]} Qc1 {[%emt 0:00:50]} 36. Qc8 {[%emt 0:01:23]} Qf1+ {[%emt 0:00:38]} 37. Kg4 {[%emt 0:00:19]} Ba4 {[%emt 0:00:01]} 38. axb6 {[%emt 0:01:09]} Bd1+ {[%emt 0:01:06]} 39. Kh4 {[%emt 0:00:25]} axb6 {[%emt 0:00:25]} 40. Bf5 {[%emt 0:00:00]} Qf3 {[%emt 0:00:00]} 0-1